fUSD/lending_fUSD_20260620
["ID","MTS","AMOUNT","RATE_DAILY","PERIOD"]
[425784252,1781888294000,-512.48,0.00036493,30]
[425784254,1781888294000,-807.08,0.00036493,30]
[425784259,1781888294000,-1188.41,0.00036493,30]
[425784261,1781888294000,-500.0,0.00036493,30]
[425784258,1781888294000,-710.03,0.00036493,30]
[425784257,1781888294000,-526.37,0.00036493,30]
[425784255,1781888294000,-802.44,0.00036493,30]
[425784256,1781888294000,-642.69250967,0.00036493,30]
[425784262,1781888294000,-1214.29,0.00036493,30]
[425784250,1781888294000,-474.64510644,0.00036493,30]
[425784265,1781888294000,-607.03,0.00036493,30]
[425784274,1781888294000,-2092.1,0.00036493,30]
[425784272,1781888294000,-500.0,0.00036493,30]
[425784269,1781888294000,-500.0,0.00036493,30]
[425784260,1781888294000,-500.0,0.00036493,30]
[425784273,1781888294000,-985.23,0.00036493,30]
[425784270,1781888294000,-575.06,0.00036493,30]
[425784267,1781888294000,-565.87,0.00036493,30]
[425784264,1781888294000,-500.0,0.00036493,30]
[425784266,1781888294000,-507.45,0.00036493,2]
[425784275,1781888294000,-1444.74,0.00036493,30]
[425784268,1781888294000,-607.04,0.00036493,30]
[425784271,1781888294000,-853.91,0.00036493,30]
[425784342,1781888295000,-917.69,0.00036493,30]
[425784341,1781888295000,-1936.23,0.00036493,30]
[425784338,1781888295000,-710.65,0.00036493,30]
[425784337,1781888295000,-500.0,0.00036493,30]
[425784343,1781888295000,-850.26,0.00036493,30]
[425784339,1781888295000,-3165.0,0.00036493,30]
[425784346,1781888295000,-1252.38,0.00036493,30]
[425784335,1781888295000,-500.0,0.00036493,30]
[425784344,1781888295000,-651.48,0.00036493,30]
[425784336,1781888295000,-1108.92,0.00036493,30]
[425784340,1781888295000,-1720.71,0.00036493,30]
[425784347,1781888295000,-500.0,0.00036493,30]
[425784351,1781888295000,-38531.13971821,0.000365,15]
[425784353,1781888295000,-525.66759346,0.00036531,120]
[425784349,1781888295000,-1830.44,0.00036493,30]
[425784357,1781888295000,-544.12,0.00036547,30]
[425784355,1781888295000,-1356.93,0.00036547,30]
[425784354,1781888295000,-473.03466286,0.00036531,120]
[425784352,1781888295000,-647.56434065,0.00036531,30]
[425784348,1781888295000,-1000.78,0.00036493,30]
[425784358,1781888295000,-536.88,0.00036547,30]
[425784356,1781888295000,-769.14,0.00036547,30]
[425784360,1781888295000,-500.0,0.00036547,30]
[425784345,1781888295000,-1131.94,0.00036493,30]
[425784364,1781888295000,-1095.52,0.00036547,30]
[425784350,1781888295000,-67527.19018761,0.000365,30]
[425784334,1781888295000,-770.28,0.00036493,30]
[425784321,1781888295000,-5781.35,0.00036493,30]
[425784324,1781888295000,-1286.36,0.00036493,30]
[425784361,1781888295000,-368.20758798,0.00036547,30]
[425784310,1781888295000,-2000.0,0.00036493,4]
[425784309,1781888295000,-370.11099112,0.00036493,30]
[425784308,1781888295000,-3646.26,0.00036493,30]
[425784307,1781888295000,-500.0,0.00036493,30]
[425784312,1781888295000,-631.67,0.00036493,30]
[425784322,1781888295000,-8051.7,0.00036493,30]
[425784311,1781888295000,-1427.66,0.00036493,30]
[425784315,1781888295000,-562.71,0.00036493,30]
[425784314,1781888295000,-500.0,0.00036493,30]
[425784313,1781888295000,-711.69,0.00036493,30]
[425784316,1781888295000,-711.87,0.00036493,30]
[425784317,1781888295000,-809.43,0.00036493,30]
[425784318,1781888295000,-5085.36,0.00036493,30]
[425784320,1781888295000,-1257.63,0.00036493,30]
[425784319,1781888295000,-1877.0,0.00036493,2]
[425784323,1781888295000,-217.05700515,0.00036493,30]
[425784325,1781888295000,-500.0,0.00036493,30]
[425784331,1781888295000,-1085.5,0.00036493,30]
[425784326,1781888295000,-764.17,0.00036493,30]
[425784333,1781888295000,-914.03,0.00036493,30]
[425784327,1781888295000,-4625.81,0.00036493,30]
[425784330,1781888295000,-924.86,0.00036493,30]
[425784332,1781888295000,-552.68,0.00036493,30]
[425784328,1781888295000,-1885.01,0.00036493,30]
[425784329,1781888295000,-3037.54,0.00036493,30]
[425784370,1781888295000,-500.0,0.00036547,30]
[425784362,1781888295000,-531.64,0.00036547,30]
[425784420,1781888295000,-900.24,0.00036547,30]
[425784395,1781888295000,-664.75,0.00036547,30]
[425784396,1781888295000,-537.97,0.00036547,30]
[425784398,1781888295000,-1145.24,0.00036547,30]
[425784401,1781888295000,-594.02,0.00036547,30]
[425784397,1781888295000,-500.0,0.00036547,30]
[425784400,1781888295000,-634.83,0.00036547,30]
[425784402,1781888295000,-780.74,0.00036547,30]
[425784399,1781888295000,-500.0,0.00036547,30]
[425784403,1781888295000,-743.84,0.00036547,30]
[425784405,1781888295000,-1013.87,0.00036547,30]
[425784404,1781888295000,-500.0,0.00036547,30]
[425784407,1781888295000,-500.0,0.00036547,30]
[425784408,1781888295000,-577.97,0.00036547,30]
[425784410,1781888295000,-1109.66,0.00036547,30]
[425784411,1781888295000,-574.37,0.00036547,30]
[425784412,1781888295000,-695.27,0.00036547,30]
[425784409,1781888295000,-1013.66,0.00036547,30]
[425784413,1781888295000,-2528.15,0.00036547,30]
[425784414,1781888295000,-636.13,0.00036547,30]
[425784416,1781888295000,-620.19,0.00036547,30]
[425784415,1781888295000,-1182.85,0.00036547,30]
[425784417,1781888295000,-628.07,0.00036547,30]
[425784418,1781888295000,-722.6,0.00036547,30]
[425784419,1781888295000,-918.47,0.00036547,30]
[425784359,1781888295000,-508.71,0.00036547,30]
[425784393,1781888295000,-500.0,0.00036547,30]
[425784394,1781888295000,-1348.31,0.00036547,30]
[425784406,1781888295000,-2492.23,0.00036547,30]
[425784391,1781888295000,-544.23,0.00036547,30]
[425784388,1781888295000,-759.52,0.00036547,30]
[425784369,1781888295000,-580.64,0.00036547,30]
[425784365,1781888295000,-500.0,0.00036547,30]
[425784363,1781888295000,-578.3,0.00036547,30]
[425784368,1781888295000,-923.44,0.00036547,30]
[425784367,1781888295000,-809.71,0.00036547,30]
[425784371,1781888295000,-252.25639839,0.00036547,30]
[425784373,1781888295000,-1017.11,0.00036547,30]
[425784372,1781888295000,-747.58,0.00036547,30]
[425784380,1781888295000,-500.0,0.00036547,30]
[425784382,1781888295000,-500.0,0.00036547,30]
[425784374,1781888295000,-634.35478874,0.00036547,30]
[425784375,1781888295000,-674.8,0.00036547,30]
[425784366,1781888295000,-500.0,0.00036547,30]
[425784378,1781888295000,-996.41,0.00036547,30]
[425784381,1781888295000,-1338.57,0.00036547,30]
[425784385,1781888295000,-1286.29,0.00036547,30]
[425784390,1781888295000,-642.86992107,0.00036547,30]
[425784392,1781888295000,-547.88,0.00036547,30]
[425784387,1781888295000,-500.0,0.00036547,30]
[425784386,1781888295000,-507.51,0.00036547,30]
[425784389,1781888295000,-627.51,0.00036547,30]
[425784384,1781888295000,-833.48,0.00036547,30]
[425784379,1781888295000,-517.19,0.00036547,30]
[425784377,1781888295000,-588.74,0.00036547,30]
[425784376,1781888295000,-500.0,0.00036547,30]
[425784383,1781888295000,-662.39,0.00036547,30]
[425784454,1781888296000,-807.08,0.00036547,30]
[425784453,1781888296000,-515.79,0.00036547,30]
[425784457,1781888296000,-710.03,0.00036547,30]
[425784449,1781888296000,-860.38,0.00036547,30]
[425784456,1781888296000,-526.37,0.00036547,30]
[425784458,1781888296000,-1188.41,0.00036547,30]
[425784452,1781888296000,-512.48,0.00036547,30]
[425784455,1781888296000,-802.44,0.00036547,30]
[425784460,1781888296000,-500.0,0.00036547,30]
[425784459,1781888296000,-500.0,0.00036547,30]
[425784451,1781888296000,-500.0,0.00036547,30]
[425784461,1781888296000,-1214.29,0.00036547,30]
[425784468,1781888296000,-500.0,0.00036547,30]
[425784463,1781888296000,-500.0,0.00036547,30]
[425784469,1781888296000,-575.06,0.00036547,30]
[425784470,1781888296000,-853.91,0.00036547,30]
[425784465,1781888296000,-507.45,0.00036547,2]
[425784467,1781888296000,-607.04,0.00036547,30]
[425784462,1781888296000,-1675.21,0.00036547,30]
[425784466,1781888296000,-565.87,0.00036547,30]
[425784471,1781888296000,-500.0,0.00036547,30]
[425784473,1781888296000,-2092.1,0.00036547,30]
[425784472,1781888296000,-985.23,0.00036547,30]
[425784475,1781888296000,-650.27,0.00036547,30]
[425784450,1781888296000,-505.49,0.00036547,30]
[425784464,1781888296000,-607.03,0.00036547,30]
[425784447,1781888296000,-755.8,0.00036547,30]
[425784478,1781888296000,-737.33,0.00036547,30]
[425784441,1781888296000,-697.26,0.00036547,30]
[425784426,1781888296000,-500.0,0.00036547,30]
[425784421,1781888296000,-636.4,0.00036547,30]
[425784423,1781888296000,-662.63,0.00036547,30]
[425784424,1781888296000,-643.62,0.00036547,30]
[425784425,1781888296000,-2588.84,0.00036547,30]
[425784422,1781888296000,-529.62351823,0.00036547,30]
[425784436,1781888296000,-1066.11,0.00036547,30]
[425784437,1781888296000,-585.97,0.00036547,30]
[425784428,1781888296000,-598.87,0.00036547,30]
[425784427,1781888296000,-947.68,0.00036547,30]
[425784432,1781888296000,-846.54,0.00036547,30]
[425784430,1781888296000,-658.41,0.00036547,30]
[425784429,1781888296000,-970.43,0.00036547,30]
[425784438,1781888296000,-846.43,0.00036547,30]
[425784435,1781888296000,-650.2,0.00036547,30]
[425784433,1781888296000,-649.08,0.00036547,30]
[425784434,1781888296000,-500.0,0.00036547,30]
[425784431,1781888296000,-1083.37,0.00036547,30]
[425784440,1781888296000,-678.01,0.00036547,30]
[425784439,1781888296000,-1580.21,0.00036547,30]
[425784442,1781888296000,-500.0,0.00036547,30]
[425784443,1781888296000,-500.0,0.00036547,30]
[425784446,1781888296000,-1586.38,0.00036547,30]
[425784445,1781888296000,-651.01,0.00036547,30]
[425784444,1781888296000,-734.22,0.00036547,30]
[425784448,1781888296000,-522.21,0.00036547,30]
[425784480,1781888296000,-621.71,0.00036547,30]
[425784483,1781888296000,-500.0,0.00036547,30]
[425784479,1781888296000,-958.15,0.00036547,30]
[425784512,1781888296000,-562.71,0.00036547,30]
[425784513,1781888296000,-711.87,0.00036547,30]
[425784510,1781888296000,-711.69,0.00036547,30]
[425784511,1781888296000,-500.0,0.00036547,30]
[425784508,1781888296000,-1427.66,0.00036547,30]
[425784514,1781888296000,-809.43,0.00036547,30]
[425784515,1781888296000,-5085.36,0.00036547,30]
[425784516,1781888296000,-1877.0,0.00036547,2]
[425784517,1781888296000,-1257.63,0.00036547,30]
[425784519,1781888296000,-8051.7,0.00036547,30]
[425784520,1781888296000,-1286.36,0.00036547,30]
[425784525,1781888296000,-3037.54,0.00036547,30]
[425784523,1781888296000,-4625.81,0.00036547,30]
[425784518,1781888296000,-5781.35,0.00036547,30]
[425784524,1781888296000,-1885.01,0.00036547,30]
[425784526,1781888296000,-924.86,0.00036547,30]
[425784528,1781888296000,-552.68,0.00036547,30]
[425784527,1781888296000,-1085.5,0.00036547,30]
[425784522,1781888296000,-764.17,0.00036547,30]
[425784529,1781888296000,-914.03,0.00036547,30]
[425784531,1781888296000,-500.0,0.00036547,30]
[425784530,1781888296000,-770.28,0.00036547,30]
[425784532,1781888296000,-1108.92,0.00036547,30]
[425784533,1781888296000,-220.60118626,0.00036547,30]
[425784482,1781888296000,-575.14,0.00036547,30]
[425784509,1781888296000,-631.67,0.00036547,30]
[425784507,1781888296000,-2000.0,0.00036547,4]
[425784521,1781888296000,-500.0,0.00036547,30]
[425784506,1781888296000,-3646.26,0.00036547,30]
[425784474,1781888296000,-1444.74,0.00036547,30]
[425784503,1781888296000,-961.56,0.00036547,30]
[425784481,1781888296000,-537.57,0.00036547,30]
[425784534,1781888296000,-710.65,0.00036547,30]
[425784476,1781888296000,-640.19,0.00036547,30]
[425784477,1781888296000,-652.73,0.00036547,30]
[425784484,1781888296000,-721.82,0.00036547,30]
[425784485,1781888296000,-275.77372673,0.00036547,30]
[425784488,1781888296000,-552.56,0.00036547,30]
[425784487,1781888296000,-1264.79,0.00036547,30]
[425784490,1781888296000,-1265.07,0.00036547,30]
[425784486,1781888296000,-1000.0,0.00036547,30]
[425784495,1781888296000,-1391.17,0.00036547,30]
[425784489,1781888296000,-757.69,0.00036547,30]
[425784504,1781888296000,-1123.62,0.00036547,30]
[425784502,1781888296000,-534.92,0.00036547,30]
[425784494,1781888296000,-1423.78,0.00036547,30]
[425784500,1781888296000,-500.0,0.00036547,30]
[425784505,1781888296000,-617.99120843,0.00036547,30]
[425784501,1781888296000,-500.0,0.00036547,2]
[425784499,1781888296000,-857.32,0.00036547,30]
[425784498,1781888296000,-721.41,0.00036547,30]
[425784497,1781888296000,-592.13,0.00036547,30]
[425784492,1781888296000,-510.64,0.00036547,30]
[425784493,1781888296000,-2137.39,0.00036547,30]
[425784491,1781888296000,-693.9,0.00036547,30]
[425784496,1781888296000,-1656.0,0.00036547,30]
[425784575,1781888297000,-1286.29,0.00036602,30]
[425784572,1781888297000,-500.0,0.00036602,30]
[425784574,1781888297000,-833.48,0.00036602,30]
[425784577,1781888297000,-206.21985723,0.00036602,30]
[425784573,1781888297000,-662.39,0.00036602,30]
[425784563,1781888297000,-747.58,0.00036602,30]
[425784578,1781888297000,-759.52,0.00036602,30]
[425784571,1781888297000,-1338.57,0.00036602,30]
[425784567,1781888297000,-588.74,0.00036602,30]
[425784569,1781888297000,-517.19,0.00036602,30]
[425784576,1781888297000,-507.51,0.00036602,30]
[425784570,1781888297000,-500.0,0.00036602,30]
[425784568,1781888297000,-996.41,0.00036602,30]
[425784592,1781888297000,-743.84,0.00036602,30]
[425784579,1781888297000,-627.51,0.00036602,30]
[425784590,1781888297000,-594.02,0.00036602,30]
[425784585,1781888297000,-537.97,0.00036602,30]
[425784583,1781888297000,-1348.31,0.00036602,30]
[425784581,1781888297000,-547.88,0.00036602,30]
[425784589,1781888297000,-634.83,0.00036602,30]
[425784582,1781888297000,-500.0,0.00036602,30]
[425784584,1781888297000,-664.75,0.00036602,30]
[425784586,1781888297000,-500.0,0.00036602,30]
[425784587,1781888297000,-1145.24,0.00036602,30]
[425784588,1781888297000,-500.0,0.00036602,30]
[425784561,1781888297000,-580.64,0.00036602,30]
[425784580,1781888297000,-544.23,0.00036602,30]
[425784560,1781888297000,-923.44,0.00036602,30]
[425784535,1781888297000,-3165.0,0.00036547,30]
[425784562,1781888297000,-500.0,0.00036602,30]
[425784541,1781888297000,-1131.94,0.00036547,30]
[425784537,1781888297000,-1936.23,0.00036547,30]
[425784536,1781888297000,-1720.71,0.00036547,30]
[425784538,1781888297000,-917.69,0.00036547,30]
[425784539,1781888297000,-850.26,0.00036547,30]
[425784540,1781888297000,-651.48,0.00036547,30]
[425784542,1781888297000,-1252.38,0.00036547,30]
[425784546,1781888297000,-158.43463363,0.00036558,2]
[425784543,1781888297000,-500.0,0.00036547,30]
[425784553,1781888297000,-500.0,0.00036602,30]
[425784550,1781888297000,-544.12,0.00036602,30]
[425784544,1781888297000,-1000.78,0.00036547,30]
[425784559,1781888297000,-809.71,0.00036602,30]
[425784547,1781888297000,-17587.68209719,0.00036563,2]
[425784549,1781888297000,-769.14,0.00036602,30]
[425784551,1781888297000,-536.88,0.00036602,30]
[425784545,1781888297000,-1830.44,0.00036547,30]
[425784548,1781888297000,-1356.93,0.00036602,30]
[425784552,1781888297000,-508.71,0.00036602,30]
[425784564,1781888297000,-1017.11,0.00036602,30]
[425784566,1781888297000,-500.0,0.00036602,30]
[425784565,1781888297000,-674.8,0.00036602,30]
[425784555,1781888297000,-578.3,0.00036602,30]
[425784557,1781888297000,-600.85488692,0.00036602,30]
[425784558,1781888297000,-500.0,0.00036602,30]
[425784556,1781888297000,-1095.52,0.00036602,30]
[425784554,1781888297000,-531.64,0.00036602,30]
[425784601,1781888297000,-695.27,0.00036602,30]
[425784594,1781888297000,-1013.87,0.00036602,30]
[425784591,1781888297000,-780.74,0.00036602,30]
[425784627,1781888297000,-1580.21,0.00036602,30]
[425784628,1781888297000,-678.01,0.00036602,30]
[425784630,1781888297000,-500.0,0.00036602,30]
[425784629,1781888297000,-697.26,0.00036602,30]
[425784637,1781888297000,-860.38,0.00036602,30]
[425784634,1781888297000,-1586.38,0.00036602,30]
[425784635,1781888297000,-755.8,0.00036602,30]
[425784638,1781888297000,-505.49,0.00036602,30]
[425784631,1781888297000,-500.0,0.00036602,30]
[425784632,1781888297000,-734.22,0.00036602,30]
[425784633,1781888297000,-651.01,0.00036602,30]
[425784636,1781888297000,-522.21,0.00036602,30]
[425784640,1781888297000,-512.48,0.00036602,30]
[425784643,1781888297000,-802.44,0.00036602,30]
[425784646,1781888297000,-1188.41,0.00036602,30]
[425784648,1781888297000,-500.0,0.00036602,30]
[425784647,1781888297000,-500.0,0.00036602,30]
[425784642,1781888297000,-807.08,0.00036602,30]
[425784641,1781888297000,-515.79,0.00036602,30]
[425784645,1781888297000,-710.03,0.00036602,30]
[425784649,1781888297000,-1214.29,0.00036602,30]
[425784644,1781888297000,-526.37,0.00036602,30]
[425784650,1781888297000,-1675.21,0.00036602,30]
[425784651,1781888297000,-500.0,0.00036602,30]
[425784652,1781888297000,-607.03,0.00036602,30]
[425784653,1781888297000,-507.45,0.00036602,2]
[425784597,1781888297000,-577.97,0.00036602,30]
[425784617,1781888297000,-970.43,0.00036602,30]
[425784618,1781888297000,-658.41,0.00036602,30]
[425784639,1781888297000,-500.0,0.00036602,30]
[425784625,1781888297000,-585.97,0.00036602,30]
[425784626,1781888297000,-846.43,0.00036602,30]
[425784600,1781888297000,-574.37,0.00036602,30]
[425784593,1781888297000,-471.79212791,0.00036602,30]
[425784595,1781888297000,-2492.23,0.00036602,30]
[425784596,1781888297000,-500.0,0.00036602,30]
[425784598,1781888297000,-1013.66,0.00036602,30]
[425784599,1781888297000,-1109.66,0.00036602,30]
[425784604,1781888297000,-1182.85,0.00036602,30]
[425784613,1781888297000,-2588.84,0.00036602,30]
[425784605,1781888297000,-620.19,0.00036602,30]
[425784606,1781888297000,-628.07,0.00036602,30]
[425784603,1781888297000,-636.13,0.00036602,30]
[425784615,1781888297000,-947.68,0.00036602,30]
[425784614,1781888297000,-500.0,0.00036602,30]
[425784602,1781888297000,-2528.15,0.00036602,30]
[425784621,1781888297000,-649.08,0.00036602,30]
[425784610,1781888297000,-636.4,0.00036602,30]
[425784608,1781888297000,-918.47,0.00036602,30]
[425784607,1781888297000,-722.6,0.00036602,30]
[425784611,1781888297000,-662.63,0.00036602,30]
[425784612,1781888297000,-643.62,0.00036602,30]
[425784616,1781888297000,-598.87,0.00036602,30]
[425784620,1781888297000,-846.54,0.00036602,30]
[425784623,1781888297000,-650.2,0.00036602,30]
[425784609,1781888297000,-900.24,0.00036602,30]
[425784624,1781888297000,-1066.11,0.00036602,30]
[425784619,1781888297000,-1083.37,0.00036602,30]
[425784622,1781888297000,-500.0,0.00036602,30]
[425784696,1781888298000,-631.67,0.00036602,30]
[425784692,1781888298000,-3646.26,0.00036602,30]
[425784679,1781888298000,-510.64,0.00036602,30]
[425784693,1781888298000,-2000.0,0.00036602,4]
[425784690,1781888298000,-961.56,0.00036602,30]
[425784691,1781888298000,-1123.62,0.00036602,30]
[425784685,1781888298000,-721.41,0.00036602,30]
[425784689,1781888298000,-534.92,0.00036602,30]
[425784688,1781888298000,-500.0,0.00036602,2]
[425784686,1781888298000,-857.32,0.00036602,30]
[425784687,1781888298000,-500.0,0.00036602,30]
[425784695,1781888298000,-711.69,0.00036602,30]
[425784694,1781888298000,-1427.66,0.00036602,30]
[425784697,1781888298000,-500.0,0.00036602,30]
[425784700,1781888298000,-809.43,0.00036602,30]
[425784705,1781888298000,-8051.7,0.00036602,30]
[425784707,1781888298000,-500.0,0.00036602,30]
[425784699,1781888298000,-711.87,0.00036602,30]
[425784704,1781888298000,-5781.35,0.00036602,30]
[425784706,1781888298000,-1286.36,0.00036602,30]
[425784701,1781888298000,-5085.36,0.00036602,30]
[425784702,1781888298000,-1877.0,0.00036602,2]
[425784703,1781888298000,-1257.63,0.00036602,30]
[425784709,1781888298000,-4625.81,0.00036602,30]
[425784710,1781888298000,-1885.01,0.00036602,30]
[425784719,1781888298000,-710.65,0.00036602,30]
[425784720,1781888298000,-3165.0,0.00036602,30]
[425784698,1781888298000,-562.71,0.00036602,30]
[425784678,1781888298000,-693.9,0.00036602,30]
[425784654,1781888298000,-565.87,0.00036602,30]
[425784680,1781888298000,-2137.39,0.00036602,30]
[425784659,1781888298000,-500.0,0.00036602,30]
[425784655,1781888298000,-607.04,0.00036602,30]
[425784657,1781888298000,-575.06,0.00036602,30]
[425784656,1781888298000,-500.0,0.00036602,30]
[425784708,1781888298000,-764.17,0.00036602,30]
[425784658,1781888298000,-853.91,0.00036602,30]
[425784660,1781888298000,-985.23,0.00036602,30]
[425784670,1781888298000,-575.14,0.00036602,30]
[425784669,1781888298000,-537.57,0.00036602,30]
[425784671,1781888298000,-500.0,0.00036602,30]
[425784661,1781888298000,-2092.1,0.00036602,30]
[425784662,1781888298000,-1444.74,0.00036602,30]
[425784663,1781888298000,-650.27,0.00036602,30]
[425784664,1781888298000,-640.19,0.00036602,30]
[425784666,1781888298000,-737.33,0.00036602,30]
[425784665,1781888298000,-652.73,0.00036602,30]
[425784667,1781888298000,-958.15,0.00036602,30]
[425784668,1781888298000,-621.71,0.00036602,30]
[425784672,1781888298000,-721.82,0.00036602,30]
[425784675,1781888298000,-552.56,0.00036602,30]
[425784674,1781888298000,-1264.79,0.00036602,30]
[425784673,1781888298000,-1000.0,0.00036602,30]
[425784677,1781888298000,-1265.07,0.00036602,30]
[425784683,1781888298000,-1656.0,0.00036602,30]
[425784682,1781888298000,-1391.17,0.00036602,30]
[425784681,1781888298000,-1423.78,0.00036602,30]
[425784684,1781888298000,-592.13,0.00036602,30]
[425784676,1781888298000,-757.69,0.00036602,30]
[425784711,1781888298000,-3037.54,0.00036602,30]
[425784767,1781888298000,-1286.29,0.00036657,30]
[425784713,1781888298000,-1085.5,0.00036602,30]
[425784749,1781888298000,-578.3,0.00036657,30]
[425784747,1781888298000,-500.0,0.00036657,30]
[425784754,1781888298000,-580.64,0.00036657,30]
[425784750,1781888298000,-1095.52,0.00036657,30]
[425784759,1781888298000,-500.0,0.00036657,30]
[425784755,1781888298000,-585.50751703,0.00036657,30]
[425784753,1781888298000,-923.44,0.00036657,30]
[425784756,1781888298000,-747.58,0.00036657,30]
[425784758,1781888298000,-674.8,0.00036657,30]
[425784748,1781888298000,-531.64,0.00036657,30]
[425784752,1781888298000,-809.71,0.00036657,30]
[425784751,1781888298000,-500.0,0.00036657,30]
[425784757,1781888298000,-1017.11,0.00036657,30]
[425784761,1781888298000,-996.41,0.00036657,30]
[425784771,1781888298000,-627.51,0.00036657,30]
[425784760,1781888298000,-588.74,0.00036657,30]
[425784762,1781888298000,-517.19,0.00036657,30]
[425784764,1781888298000,-1338.57,0.00036657,30]
[425784763,1781888298000,-500.0,0.00036657,30]
[425784766,1781888298000,-662.39,0.00036657,30]
[425784769,1781888298000,-507.51,0.00036657,30]
[425784770,1781888298000,-759.52,0.00036657,30]
[425784768,1781888298000,-833.48,0.00036657,30]
[425784765,1781888298000,-361.31427412,0.00036657,30]
[425784772,1781888298000,-544.23,0.00036657,30]
[425784774,1781888298000,-597.8863607,0.00036657,30]
[425784712,1781888298000,-924.86,0.00036602,30]
[425784740,1781888298000,-7521.704236,0.00036633,2]
[425784739,1781888298000,-968.46894036,0.00036615,2]
[425784773,1781888298000,-547.88,0.00036657,30]
[425784744,1781888298000,-544.12,0.00036657,30]
[425784714,1781888298000,-552.68,0.00036602,30]
[425784715,1781888298000,-914.03,0.00036602,30]
[425784716,1781888298000,-770.28,0.00036602,30]
[425784718,1781888298000,-1108.92,0.00036602,30]
[425784717,1781888298000,-500.0,0.00036602,30]
[425784721,1781888298000,-1720.71,0.00036602,30]
[425784723,1781888298000,-917.69,0.00036602,30]
[425784742,1781888298000,-1356.93,0.00036657,30]
[425784726,1781888298000,-1131.94,0.00036602,30]
[425784725,1781888298000,-651.48,0.00036602,30]
[425784731,1781888298000,-1025.5535609,0.00036605,2]
[425784728,1781888298000,-500.0,0.00036602,30]
[425784730,1781888298000,-1830.44,0.00036602,30]
[425784724,1781888298000,-850.26,0.00036602,30]
[425784732,1781888298000,-1084.52344784,0.00036605,2]
[425784741,1781888298000,-150.0,0.00036651,120]
[425784727,1781888298000,-1252.38,0.00036602,30]
[425784738,1781888298000,-150.0,0.00036613,120]
[425784743,1781888298000,-769.14,0.00036657,30]
[425784736,1781888298000,-160.0,0.00036606,11]
[425784746,1781888298000,-508.71,0.00036657,30]
[425784737,1781888298000,-265.48496933,0.00036611,7]
[425784745,1781888298000,-536.88,0.00036657,30]
[425784735,1781888298000,-986.52644721,0.00036606,2]
[425784733,1781888298000,-1010.24874539,0.00036605,2]
[425784729,1781888298000,-1000.78,0.00036602,30]
[425784722,1781888298000,-1936.23,0.00036602,30]
[425784734,1781888298000,-1076.04578182,0.00036605,2]
[425784808,1781888299000,-970.43,0.00036657,30]
[425784812,1781888299000,-649.08,0.00036657,30]
[425784813,1781888299000,-500.0,0.00036657,30]
[425784810,1781888299000,-1083.37,0.00036657,30]
[425784807,1781888299000,-598.87,0.00036657,30]
[425784802,1781888299000,-662.63,0.00036657,30]
[425784817,1781888299000,-846.43,0.00036657,30]
[425784816,1781888299000,-585.97,0.00036657,30]
[425784815,1781888299000,-1066.11,0.00036657,30]